[Event "Titled Tuesday Blitz August 31 2021"]
[White "Tokman, Ariel"]
[Black "Jaracz, Pawel"]
[WhiteFideId "117420"]
[BlackFideId "1102222"]
[WhiteElo "2491"]
[BlackElo "2683"]
[Result "0-1"]
[Round "08"]
[TimeControl "180+1"]
[Date "2021.08.31"]
[WhiteClock "0:00:07"]
[BlackClock "0:00:06"]

1. c4 {[%clk 0:03:00]}  e5 {[%clk 0:02:58]} 2. g3 {[%clk 0:03:00]}  Nf6 {[%clk 0:02:58]} 3. Bg2 {[%clk 0:03:00]}  c6 {[%clk 0:02:57]} 4. Nf3 {[%clk 0:02:59]}  e4 {[%clk 0:02:57]} 5. Nd4 {[%clk 0:03:00]}  Qb6 {[%clk 0:02:57]} 6. Nc2 {[%clk 0:02:59]}  d5 {[%clk 0:02:56]} 7. cxd5 {[%clk 0:02:56]}  cxd5 {[%clk 0:02:56]} 8. Nc3 {[%clk 0:02:50]}  Bc5 {[%clk 0:02:25]} 9. O-O {[%clk 0:02:48]}  Ng4 {[%clk 0:02:12]} 10. e3 {[%clk 0:01:59]}  Nf6 {[%clk 0:02:05]} 11. d3 {[%clk 0:01:53]}  Bg4 {[%clk 0:02:02]} 12. f3 {[%clk 0:01:44]}  exf3 {[%clk 0:02:02]} 13. Bxf3 {[%clk 0:01:45]}  Bxf3 {[%clk 0:02:02]} 14. Qxf3 {[%clk 0:01:45]}  Qe6 {[%clk 0:02:02]} 15. Nb5 {[%clk 0:01:40]}  Qd7 {[%clk 0:01:58]} 16. Nbd4 {[%clk 0:01:37]}  O-O {[%clk 0:01:55]} 17. Nf5 {[%clk 0:01:37]}  Qd8 {[%clk 0:01:35]} 18. Bd2 {[%clk 0:01:28]}  Nbd7 {[%clk 0:01:34]} 19. Bc3 {[%clk 0:01:17]}  Re8 {[%clk 0:01:26]} 20. Qf4 {[%clk 0:01:14]}  Bf8 {[%clk 0:01:09]} 21. Qg5 {[%clk 0:01:11]}  Kh8 {[%clk 0:01:04]} 22. Rf3 {[%clk 0:00:58]}  Ne5 {[%clk 0:01:02]} 23. Bxe5 {[%clk 0:00:40]}  Rxe5 {[%clk 0:01:02]} 24. Qf4 {[%clk 0:00:35]}  Qe8 {[%clk 0:00:57]} 25. Raf1 {[%clk 0:00:34]}  Rc8 {[%clk 0:00:43]} 26. Ncd4 {[%clk 0:00:34]}  Nh5 {[%clk 0:00:26]} 27. Qh4 {[%clk 0:00:20]}  g6 {[%clk 0:00:26]} 28. g4 {[%clk 0:00:18]}  gxf5 {[%clk 0:00:19]} 29. Qxh5 {[%clk 0:00:16]}  fxg4 {[%clk 0:00:16]} 30. Rf5 {[%clk 0:00:16]}  Bg7 {[%clk 0:00:15]} 31. Kg2 {[%clk 0:00:05]}  Rxe3 {[%clk 0:00:14]} 32. Rxf7 {[%clk 0:00:05]}  Re5 {[%clk 0:00:14]} 33. Qxg4 {[%clk 0:00:04]}  Qg8 {[%clk 0:00:10]} 34. R1f2 {[%clk 0:00:03]}  Rce8 {[%clk 0:00:10]} 35. Ne2 {[%clk 0:00:02]}  Re3 {[%clk 0:00:09]} 36. Ng3 {[%clk 0:00:02]}  Be5 {[%clk 0:00:06]} 37. Qh4 {[%clk 0:00:02]}  Bxg3 {[%clk 0:00:05]} 38. hxg3 {[%clk 0:00:02]}  R3e6 {[%clk 0:00:06]} 39. R7f5 {[%clk 0:00:02]}  Rg6 {[%clk 0:00:06]} 40. Rh5 {[%clk 0:00:02]}  Qg7 {[%clk 0:00:06]} 41. Qf4 {[%clk 0:00:02]}  Rg8 {[%clk 0:00:06]} 42. Rh3 {[%clk 0:00:02]}  Rg4 {[%clk 0:00:05]} 43. Qf6 {[%clk 0:00:01]}  Qxf6 {[%clk 0:00:04]} 44. Rxf6 {[%clk 0:00:02]}  Rc8 {[%clk 0:00:04]} 45. Rf7 {[%clk 0:00:02]}  Rg7 {[%clk 0:00:04]} 46. Rf5 {[%clk 0:00:01]}  Rc2+ {[%clk 0:00:04]} 47. Kf3 {[%clk 0:00:01]}  Rd7 {[%clk 0:00:04]} 48. Re5 {[%clk 0:00:01]}  Rxb2 {[%clk 0:00:04]} 49. Rhh5 {[%clk 0:00:02]}  Rb6 {[%clk 0:00:03]} 50. Rxd5 {[%clk 0:00:02]}  Rf6+ {[%clk 0:00:03]} 51. Ke4 {[%clk 0:00:02]}  Rxd5 {[%clk 0:00:02]} 52. Rxd5 {[%clk 0:00:03]}  Rb6 {[%clk 0:00:01]} 53. Ra5 {[%clk 0:00:03]}  a6 {[%clk 0:00:01]} 54. a4 {[%clk 0:00:04]}  Rb4+ {[%clk 0:00:01]} 55. d4 {[%clk 0:00:04]}  Rb6 {[%clk 0:00:02]} 56. d5 {[%clk 0:00:05]}  Kg7 {[%clk 0:00:03]} 57. Rc5 {[%clk 0:00:05]}  Kf6 {[%clk 0:00:02]} 58. Rc7 {[%clk 0:00:05]}  Rb4+ {[%clk 0:00:03]} 59. Kf3 {[%clk 0:00:05]}  Rb3+ {[%clk 0:00:03]} 60. Kf4 {[%clk 0:00:05]}  Rb4+ {[%clk 0:00:04]} 61. Kf3 {[%clk 0:00:06]}  h5 {[%clk 0:00:04]} 62. a5 {[%clk 0:00:05]}  Ke5 {[%clk 0:00:04]} 63. Rd7 {[%clk 0:00:05]}  Rb5 {[%clk 0:00:04]} 64. Kg2 {[%clk 0:00:03]}  Rxd5 {[%clk 0:00:04]} 65. Rxb7 {[%clk 0:00:03]}  Rxa5 {[%clk 0:00:05]} 66. Kh3 {[%clk 0:00:04]}  Kd4 {[%clk 0:00:05]} 67. Kh4 {[%clk 0:00:04]}  Rb5 {[%clk 0:00:05]} 68. Ra7 {[%clk 0:00:04]}  a5 {[%clk 0:00:05]} 69. Ra8 {[%clk 0:00:05]}  Kc4 {[%clk 0:00:05]} 70. Rh8 {[%clk 0:00:05]}  Kb4 {[%clk 0:00:05]} 71. Rxh5 {[%clk 0:00:04]}  Rxh5+ {[%clk 0:00:04]} 72. Kxh5 {[%clk 0:00:05]}  a4 {[%clk 0:00:04]} 73. g4 {[%clk 0:00:06]}  a3 {[%clk 0:00:05]} 74. g5 {[%clk 0:00:07]}  a2 {[%clk 0:00:06]} 75. g6 {[%clk 0:00:07]}  a1=Q {[%clk 0:00:06]} 0-1


[Site "https://www.chess.com"]

[Event "Titled Tuesday Blitz August 31 2021"]
[White "Tomiello, Mateus Costamilan"]
[Black "Liyanage, Ranindu Dilshan"]
[WhiteFideId "22701958"]
[BlackFideId "9915834"]
[WhiteElo "1975"]
[BlackElo "1839"]
[Result "0-1"]
[Round "08"]
[TimeControl "180+1"]
[Date "2021.08.31"]
[WhiteClock "0:00:02"]
[BlackClock "0:00:17"]

1. e4 {[%clk 0:03:00]}  c5 {[%clk 0:02:59]} 2. Nf3 {[%clk 0:03:01]}  d6 {[%clk 0:02:59]} 3. d4 {[%clk 0:03:00]}  cxd4 {[%clk 0:03:00]} 4. Nxd4 {[%clk 0:03:01]}  Nf6 {[%clk 0:03:01]} 5. Nc3 {[%clk 0:03:01]}  a6 {[%clk 0:03:01]} 6. a3 {[%clk 0:03:01]}  g6 {[%clk 0:02:59]} 7. f3 {[%clk 0:02:56]}  Bg7 {[%clk 0:02:59]} 8. Be3 {[%clk 0:02:57]}  O-O {[%clk 0:02:59]} 9. Qd2 {[%clk 0:02:57]}  Nc6 {[%clk 0:02:58]} 10. O-O-O {[%clk 0:02:54]}  Nxd4 {[%clk 0:02:51]} 11. Bxd4 {[%clk 0:02:53]}  Be6 {[%clk 0:02:51]} 12. h4 {[%clk 0:02:50]}  h5 {[%clk 0:02:43]} 13. g4 {[%clk 0:02:40]}  hxg4 {[%clk 0:02:41]} 14. h5 {[%clk 0:02:40]}  gxh5 {[%clk 0:02:33]} 15. Qg5 {[%clk 0:01:56]}  Re8 {[%clk 0:01:57]} 16. Bd3 {[%clk 0:01:52]}  Rc8 {[%clk 0:01:47]} 17. Rdg1 {[%clk 0:01:41]}  Bd7 {[%clk 0:01:20]} 18. fxg4 {[%clk 0:01:28]}  Bxg4 {[%clk 0:01:16]} 19. e5 {[%clk 0:01:08]}  dxe5 {[%clk 0:01:11]} 20. Bxe5 {[%clk 0:01:07]}  Rc5 {[%clk 0:01:00]} 21. Ne4 {[%clk 0:00:28]}  Qxd3 {[%clk 0:00:28]} 22. Nxc5 {[%clk 0:00:21]}  Qc4 {[%clk 0:00:28]} 23. Nd3 {[%clk 0:00:13]}  Rc8 {[%clk 0:00:27]} 24. Rh2 {[%clk 0:00:12]}  Qxd3 {[%clk 0:00:22]} 25. Rd2 {[%clk 0:00:03]}  Qg6 {[%clk 0:00:20]} 26. Qf4 {[%clk 0:00:02]}  Ne4 {[%clk 0:00:18]} 27. Rdg2 {[%clk 0:00:02]}  Bh6 {[%clk 0:00:17]} 0-1


[Site "https://www.chess.com"]

[Event "Titled Tuesday Blitz August 31 2021"]
[White "Vachier-Lagrave, Maxime"]
[Black "Kamsky, Gata"]
[WhiteFideId "623539"]
[BlackFideId "2000024"]
[WhiteElo "2850"]
[BlackElo "2644"]
[Result "0-1"]
[Round "08"]
[TimeControl "180+1"]
[Date "2021.08.31"]
[WhiteClock "0:01:08"]
[BlackClock "0:00:56"]

1. d4 {[%clk 0:03:00]}  Nf6 {[%clk 0:02:56]} 2. c4 {[%clk 0:03:01]}  c6 {[%clk 0:02:52]} 3. Nc3 {[%clk 0:03:00]}  d5 {[%clk 0:02:52]} 4. Nf3 {[%clk 0:03:00]}  a6 {[%clk 0:02:52]} 5. Qb3 {[%clk 0:02:48]}  e6 {[%clk 0:02:40]} 6. Bg5 {[%clk 0:02:46]}  dxc4 {[%clk 0:02:39]} 7. Qxc4 {[%clk 0:02:45]}  b5 {[%clk 0:02:40]} 8. Qd3 {[%clk 0:02:45]}  Nbd7 {[%clk 0:02:38]} 9. e4 {[%clk 0:02:42]}  h6 {[%clk 0:02:38]} 10. Bxf6 {[%clk 0:02:41]}  Nxf6 {[%clk 0:02:31]} 11. Be2 {[%clk 0:02:38]}  c5 {[%clk 0:02:31]} 12. e5 {[%clk 0:02:35]}  Nd5 {[%clk 0:02:22]} 13. Nxd5 {[%clk 0:02:35]}  Qxd5 {[%clk 0:02:20]} 14. dxc5 {[%clk 0:02:26]}  Qxd3 {[%clk 0:02:15]} 15. Bxd3 {[%clk 0:02:27]}  Bxc5 {[%clk 0:02:11]} 16. Rc1 {[%clk 0:02:21]}  Bb4+ {[%clk 0:02:09]} 17. Ke2 {[%clk 0:02:21]}  Bb7 {[%clk 0:02:08]} 18. Rc7 {[%clk 0:02:21]}  Bd5 {[%clk 0:02:07]} 19. Rhc1 {[%clk 0:02:17]}  Ba5 {[%clk 0:02:04]} 20. Rc8+ {[%clk 0:02:17]}  Kd7 {[%clk 0:02:03]} 21. Rxh8 {[%clk 0:02:17]}  Rxh8 {[%clk 0:02:02]} 22. a3 {[%clk 0:02:18]}  Bc7 {[%clk 0:02:00]} 23. a4 {[%clk 0:02:04]}  bxa4 {[%clk 0:01:58]} 24. Bxa6 {[%clk 0:02:04]}  Rb8 {[%clk 0:01:58]} 25. Rc2 {[%clk 0:02:03]}  Bxf3+ {[%clk 0:01:58]} 26. Kxf3 {[%clk 0:02:04]}  Bxe5 {[%clk 0:01:57]} 27. Rc4 {[%clk 0:01:49]}  Rb3+ {[%clk 0:01:57]} 28. Kg4 {[%clk 0:01:50]}  Rxb2 {[%clk 0:01:48]} 29. Rxa4 {[%clk 0:01:50]}  Rxf2 {[%clk 0:01:45]} 30. Bb7 {[%clk 0:01:50]}  Bxh2 {[%clk 0:01:42]} 31. g3 {[%clk 0:01:49]}  Rb2 {[%clk 0:01:39]} 32. Bf3 {[%clk 0:01:45]}  f5+ {[%clk 0:01:34]} 33. Kh5 {[%clk 0:01:44]}  Bxg3 {[%clk 0:01:33]} 34. Ra7+ {[%clk 0:01:42]}  Kd6 {[%clk 0:01:32]} 35. Rxg7 {[%clk 0:01:41]}  Bf4 {[%clk 0:01:26]} 36. Ra7 {[%clk 0:01:41]}  Rb3 {[%clk 0:01:21]} 37. Be2 {[%clk 0:01:40]}  Ke5 {[%clk 0:01:18]} 38. Ra6 {[%clk 0:01:38]}  Re3 {[%clk 0:01:13]} 39. Bf1 {[%clk 0:01:28]}  Kf6 {[%clk 0:01:13]} 40. Ra8 {[%clk 0:01:27]}  Bg5 {[%clk 0:01:10]} 41. Bg2 {[%clk 0:01:24]}  Re2 {[%clk 0:01:09]} 42. Bh3 {[%clk 0:01:21]}  Rh2 {[%clk 0:01:08]} 43. Ra3 {[%clk 0:01:22]}  e5 {[%clk 0:01:04]} 44. Rf3 {[%clk 0:01:15]}  f4 {[%clk 0:01:04]} 45. Ra3 {[%clk 0:01:12]}  e4 {[%clk 0:01:03]} 46. Kg4 {[%clk 0:01:12]}  Rh1 {[%clk 0:00:57]} 47. Bg2 {[%clk 0:01:08]}  Rh4# {[%clk 0:00:56]} 0-1


[Site "https://www.chess.com"]

[Event "Titled Tuesday Blitz August 31 2021"]
[White "Visakh N R"]
[Black "Svane, Frederik"]
[WhiteFideId "25012223"]
[BlackFideId "12923044"]
[WhiteElo "2428"]
[BlackElo "2459"]
[Result "1-0"]
[Round "08"]
[TimeControl "180+1"]
[Date "2021.08.31"]
[WhiteClock "0:00:07"]
[BlackClock "0:00:02"]

1. c4 {[%clk 0:03:00]}  c5 {[%clk 0:02:59]} 2. Nc3 {[%clk 0:02:58]}  g6 {[%clk 0:02:59]} 3. g3 {[%clk 0:02:56]}  Bg7 {[%clk 0:02:59]} 4. Bg2 {[%clk 0:02:57]}  Nc6 {[%clk 0:03:00]} 5. Nf3 {[%clk 0:02:56]}  d6 {[%clk 0:03:00]} 6. O-O {[%clk 0:02:57]}  Bf5 {[%clk 0:03:00]} 7. d3 {[%clk 0:02:56]}  Qd7 {[%clk 0:03:00]} 8. Nd5 {[%clk 0:02:51]}  Nf6 {[%clk 0:02:59]} 9. Nxf6+ {[%clk 0:02:51]}  Bxf6 {[%clk 0:02:59]} 10. Re1 {[%clk 0:02:46]}  Bh3 {[%clk 0:02:58]} 11. Bh1 {[%clk 0:02:46]}  h5 {[%clk 0:02:59]} 12. Bg5 {[%clk 0:02:44]}  h4 {[%clk 0:02:35]} 13. Bxf6 {[%clk 0:02:43]}  exf6 {[%clk 0:02:36]} 14. Qd2 {[%clk 0:02:43]}  hxg3 {[%clk 0:02:36]} 15. fxg3 {[%clk 0:02:42]}  Kf8 {[%clk 0:02:33]} 16. Qf4 {[%clk 0:02:38]}  Kg7 {[%clk 0:02:32]} 17. d4 {[%clk 0:02:38]}  cxd4 {[%clk 0:02:16]} 18. Nxd4 {[%clk 0:02:37]}  Nxd4 {[%clk 0:02:14]} 19. Qxd4 {[%clk 0:02:36]}  Rae8 {[%clk 0:02:01]} 20. Rad1 {[%clk 0:02:15]}  Re5 {[%clk 0:01:31]} 21. Qxa7 {[%clk 0:02:08]}  Qf5 {[%clk 0:01:23]} 22. Qf2 {[%clk 0:02:06]}  Qe6 {[%clk 0:01:15]} 23. Bd5 {[%clk 0:01:58]}  Qe7 {[%clk 0:01:15]} 24. Rd4 {[%clk 0:01:57]}  Be6 {[%clk 0:01:06]} 25. Bh1 {[%clk 0:01:51]}  Qc7 {[%clk 0:00:46]} 26. b3 {[%clk 0:01:50]}  Qa5 {[%clk 0:00:42]} 27. a4 {[%clk 0:01:43]}  Rf5 {[%clk 0:00:37]} 28. Bf3 {[%clk 0:01:42]}  Qc3 {[%clk 0:00:29]} 29. Rd3 {[%clk 0:01:40]}  Qb4 {[%clk 0:00:24]} 30. Red1 {[%clk 0:01:38]}  Re5 {[%clk 0:00:18]} 31. Qd4 {[%clk 0:01:34]}  Rd8 {[%clk 0:00:11]} 32. h4 {[%clk 0:01:04]}  Bf5 {[%clk 0:00:12]} 33. Re3 {[%clk 0:01:00]}  Rxe3 {[%clk 0:00:12]} 34. Qxe3 {[%clk 0:01:00]}  Bc2 {[%clk 0:00:12]} 35. Ra1 {[%clk 0:00:48]}  b6 {[%clk 0:00:06]} 36. h5 {[%clk 0:00:22]}  gxh5 {[%clk 0:00:07]} 37. Kf2 {[%clk 0:00:15]}  Qxb3 {[%clk 0:00:05]} 38. Qxb3 {[%clk 0:00:15]}  Bxb3 {[%clk 0:00:06]} 39. Bd5 {[%clk 0:00:15]}  Rc8 {[%clk 0:00:05]} 40. Rb1 {[%clk 0:00:09]}  Bxc4 {[%clk 0:00:05]} 41. Bf3 {[%clk 0:00:08]}  Rb8 {[%clk 0:00:02]} 42. a5 {[%clk 0:00:07]} 1-0


[Site "https://www.chess.com"]

[Event "Titled Tuesday Blitz August 31 2021"]
[White "Vivas Zamora, Fabian Ernesto"]
[Black "Aldokhin, Ivan"]
[WhiteFideId "3902480"]
[BlackFideId "24115720"]
[WhiteElo "1966"]
[BlackElo "2306"]
[Result "0-1"]
[Round "08"]
[TimeControl "180+1"]
[Date "2021.08.31"]
[WhiteClock "0:00:15"]
[BlackClock "0:02:21"]

1. c4 {[%clk 0:02:52]}  Nf6 {[%clk 0:02:59]} 2. Nc3 {[%clk 0:02:51]}  g6 {[%clk 0:03:00]} 3. g3 {[%clk 0:02:50]}  d6 {[%clk 0:03:01]} 4. Bg2 {[%clk 0:02:51]}  Bg7 {[%clk 0:03:02]} 5. d4 {[%clk 0:02:51]}  O-O {[%clk 0:03:02]} 6. Nf3 {[%clk 0:02:51]}  Nc6 {[%clk 0:03:01]} 7. O-O {[%clk 0:02:51]}  Bf5 {[%clk 0:03:01]} 8. e3 {[%clk 0:02:24]}  e5 {[%clk 0:03:00]} 9. d5 {[%clk 0:02:18]}  Nb4 {[%clk 0:02:52]} 10. Ne1 {[%clk 0:02:14]}  e4 {[%clk 0:02:49]} 11. a3 {[%clk 0:02:13]}  Na6 {[%clk 0:02:48]} 12. Rb1 {[%clk 0:01:41]}  Nc5 {[%clk 0:02:47]} 13. b4 {[%clk 0:01:38]}  Ncd7 {[%clk 0:02:48]} 14. Nc2 {[%clk 0:00:52]}  Ne5 {[%clk 0:02:48]} 15. Qe2 {[%clk 0:00:52]}  Bg4 {[%clk 0:02:45]} 16. Qd2 {[%clk 0:00:48]}  Nxc4 {[%clk 0:02:23]} 17. Qd4 {[%clk 0:00:40]}  Nb6 {[%clk 0:02:23]} 18. Nxe4 {[%clk 0:00:28]}  Nxe4 {[%clk 0:02:21]} 19. Qxe4 {[%clk 0:00:15]}  Bf5 {[%clk 0:02:21]} 0-1


[Site "https://www.chess.com"]

[Event "Titled Tuesday Blitz August 31 2021"]
[White "Wagner, Dennis"]
[Black "Boyer, Mahel"]
[WhiteFideId "24650684"]
[BlackFideId "45102422"]
[WhiteElo "2355"]
[BlackElo "2328"]
[Result "0-1"]
[Round "08"]
[TimeControl "180+1"]
[Date "2021.08.31"]
[WhiteClock "0:00:01"]
[BlackClock "0:01:40"]

1. e4 {[%clk 0:03:00]}  Nc6 {[%clk 0:03:00]} 2. Nf3 {[%clk 0:03:00]}  d5 {[%clk 0:03:00]} 3. exd5 {[%clk 0:03:00]}  Qxd5 {[%clk 0:03:01]} 4. Nc3 {[%clk 0:03:00]}  Qh5 {[%clk 0:03:02]} 5. Be2 {[%clk 0:03:00]}  Bg4 {[%clk 0:03:02]} 6. d4 {[%clk 0:02:36]}  O-O-O {[%clk 0:03:02]} 7. Be3 {[%clk 0:02:06]}  e5 {[%clk 0:03:02]} 8. d5 {[%clk 0:02:06]}  Nf6 {[%clk 0:03:03]} 9. h3 {[%clk 0:01:44]}  Nb4 {[%clk 0:03:02]} 10. Bc4 {[%clk 0:01:05]}  e4 {[%clk 0:03:00]} 11. Qd4 {[%clk 0:00:51]}  Nxc2+ {[%clk 0:02:59]} 12. Kf1 {[%clk 0:00:47]}  Nxd4 {[%clk 0:03:00]} 13. Nxd4 {[%clk 0:00:47]}  Bb4 {[%clk 0:02:50]} 14. Rc1 {[%clk 0:00:39]}  a6 {[%clk 0:02:49]} 15. Kg1 {[%clk 0:00:33]}  Bd7 {[%clk 0:02:49]} 16. Bb3 {[%clk 0:00:30]}  Qe5 {[%clk 0:02:47]} 17. Nde2 {[%clk 0:00:20]}  Bb5 {[%clk 0:02:44]} 18. Bf4 {[%clk 0:00:20]}  Qe7 {[%clk 0:02:44]} 19. Nxb5 {[%clk 0:00:20]}  axb5 {[%clk 0:02:44]} 20. Nd4 {[%clk 0:00:06]}  Nxd5 {[%clk 0:02:33]} 21. Nf5 {[%clk 0:00:05]}  Qf6 {[%clk 0:01:52]} 22. Bxd5 {[%clk 0:00:04]}  Rxd5 {[%clk 0:01:53]} 23. Rxc7+ {[%clk 0:00:03]}  Kd8 {[%clk 0:01:54]} 24. g4 {[%clk 0:00:01]}  Rxf5 {[%clk 0:01:53]} 25. gxf5 {[%clk 0:00:01]}  Qxf5 {[%clk 0:01:54]} 26. Bg3 {[%clk 0:00:01]}  h5 {[%clk 0:01:44]} 27. Kh2 {[%clk 0:00:01]}  Bd6 {[%clk 0:01:40]} 28. Rd1 {[%clk 0:00:02]}  Qxf2+ {[%clk 0:01:40]} 29. Kh1 {[%clk 0:00:01]}  Qxg3 {[%clk 0:01:41]} 30. Rxb7 {[%clk 0:00:01]}  Qf3+ {[%clk 0:01:40]} 0-1


[Site "https://www.chess.com"]

[Event "Titled Tuesday Blitz August 31 2021"]
[White "Weetik, Vjacheslav"]
[Black "Seemann, Jakub"]
[WhiteFideId "4153472"]
[BlackFideId "21874697"]
[WhiteElo "2469"]
[BlackElo "1805"]
[Result "1/2-1/2"]
[Round "08"]
[TimeControl "180+1"]
[Date "2021.08.31"]
[WhiteClock "0:00:06"]
[BlackClock "0:00:10"]

1. d4 {[%clk 0:02:55]}  Nf6 {[%clk 0:02:59]} 2. Bf4 {[%clk 0:02:54]}  b6 {[%clk 0:02:57]} 3. Nf3 {[%clk 0:02:53]}  Bb7 {[%clk 0:02:57]} 4. e3 {[%clk 0:02:53]}  d6 {[%clk 0:02:57]} 5. c4 {[%clk 0:02:53]}  Nbd7 {[%clk 0:02:57]} 6. Nc3 {[%clk 0:02:53]}  g6 {[%clk 0:02:58]} 7. h3 {[%clk 0:02:51]}  Bg7 {[%clk 0:02:58]} 8. Bh2 {[%clk 0:02:52]}  O-O {[%clk 0:02:58]} 9. Qc2 {[%clk 0:02:52]}  Re8 {[%clk 0:02:57]} 10. Be2 {[%clk 0:02:52]}  e5 {[%clk 0:02:57]} 11. O-O {[%clk 0:02:52]}  exd4 {[%clk 0:02:55]} 12. exd4 {[%clk 0:02:44]}  Ne4 {[%clk 0:02:55]} 13. Nd5 {[%clk 0:02:40]}  Ndf6 {[%clk 0:02:49]} 14. Ne3 {[%clk 0:02:34]}  Qe7 {[%clk 0:02:27]} 15. Qd3 {[%clk 0:01:41]}  Bh6 {[%clk 0:02:15]} 16. Nc2 {[%clk 0:01:17]}  Ng3 {[%clk 0:02:09]} 17. Bxg3 {[%clk 0:01:15]}  Qxe2 {[%clk 0:02:09]} 18. Qb3 {[%clk 0:01:03]}  Bxf3 {[%clk 0:02:08]} 19. gxf3 {[%clk 0:01:03]}  Nh5 {[%clk 0:02:00]} 20. Rfe1 {[%clk 0:01:00]}  Qd2 {[%clk 0:01:59]} 21. Rad1 {[%clk 0:00:45]}  Qg5 {[%clk 0:01:58]} 22. Kh2 {[%clk 0:00:37]}  Nf4 {[%clk 0:01:53]} 23. Ne3 {[%clk 0:00:32]}  Qh5 {[%clk 0:01:49]} 24. Bxf4 {[%clk 0:00:28]}  Bxf4+ {[%clk 0:01:50]} 25. Kg2 {[%clk 0:00:28]}  Qg5+ {[%clk 0:01:46]} 26. Kf1 {[%clk 0:00:28]}  Re6 {[%clk 0:01:24]} 27. Nd5 {[%clk 0:00:24]}  Bh2 {[%clk 0:00:25]} 28. Rxe6 {[%clk 0:00:19]}  fxe6 {[%clk 0:00:26]} 29. Ne3 {[%clk 0:00:19]}  Rf8 {[%clk 0:00:25]} 30. Ke2 {[%clk 0:00:19]}  Bf4 {[%clk 0:00:20]} 31. c5 {[%clk 0:00:19]}  d5 {[%clk 0:00:20]} 32. Qd3 {[%clk 0:00:16]}  Qh5 {[%clk 0:00:17]} 33. Rg1 {[%clk 0:00:13]}  Bh6 {[%clk 0:00:15]} 34. Ng4 {[%clk 0:00:10]}  Bg7 {[%clk 0:00:16]} 35. Rg3 {[%clk 0:00:09]}  Qf5 {[%clk 0:00:14]} 36. Qxf5 {[%clk 0:00:07]}  exf5 {[%clk 0:00:15]} 37. Ne5 {[%clk 0:00:07]}  Bxe5 {[%clk 0:00:15]} 38. dxe5 {[%clk 0:00:07]}  bxc5 {[%clk 0:00:16]} 39. f4 {[%clk 0:00:07]}  Rb8 {[%clk 0:00:14]} 40. b3 {[%clk 0:00:08]}  Kf7 {[%clk 0:00:14]} 41. Rc3 {[%clk 0:00:08]}  Rb5 {[%clk 0:00:14]} 42. a4 {[%clk 0:00:08]}  Ra5 {[%clk 0:00:14]} 43. b4 {[%clk 0:00:07]}  cxb4 {[%clk 0:00:09]} 44. Rxc7+ {[%clk 0:00:07]}  Ke6 {[%clk 0:00:07]} 45. Rxh7 {[%clk 0:00:06]}  Rxa4 {[%clk 0:00:07]} 46. Rg7 {[%clk 0:00:07]}  Ra2+ {[%clk 0:00:07]} 47. Kd3 {[%clk 0:00:07]}  Ra3+ {[%clk 0:00:07]} 48. Kc2 {[%clk 0:00:07]}  Ra2+ {[%clk 0:00:07]} 49. Kb3 {[%clk 0:00:07]}  Rxf2 {[%clk 0:00:07]} 50. Rxg6+ {[%clk 0:00:07]}  Ke7 {[%clk 0:00:07]} 51. Rg7+ {[%clk 0:00:06]}  Kf8 {[%clk 0:00:06]} 52. Rxa7 {[%clk 0:00:06]}  Rxf4 {[%clk 0:00:07]} 53. e6 {[%clk 0:00:05]}  Re4 {[%clk 0:00:05]} 54. Rf7+ {[%clk 0:00:05]}  Ke8 {[%clk 0:00:05]} 55. Rxf5 {[%clk 0:00:06]}  Rxe6 {[%clk 0:00:05]} 56. Rxd5 {[%clk 0:00:06]}  Re3+ {[%clk 0:00:05]} 57. Kxb4 {[%clk 0:00:07]}  Rxh3 {[%clk 0:00:06]} 58. Kc5 {[%clk 0:00:07]}  Ke7 {[%clk 0:00:06]} 59. Re5+ {[%clk 0:00:07]}  Kf6 {[%clk 0:00:06]} 60. Re1 {[%clk 0:00:08]}  Rc3+ {[%clk 0:00:06]} 61. Kd4 {[%clk 0:00:08]}  Rc8 {[%clk 0:00:07]} 62. Rf1+ {[%clk 0:00:08]}  Ke6 {[%clk 0:00:07]} 63. Rh1 {[%clk 0:00:09]}  Ra8 {[%clk 0:00:07]} 64. Rh6+ {[%clk 0:00:08]}  Kd7 {[%clk 0:00:07]} 65. Kc5 {[%clk 0:00:07]}  Ra5+ {[%clk 0:00:07]} 66. Kb4 {[%clk 0:00:07]}  Ra1 {[%clk 0:00:07]} 67. Rh7+ {[%clk 0:00:07]}  Kc6 {[%clk 0:00:08]} 68. Rh6+ {[%clk 0:00:08]}  Kd5 {[%clk 0:00:08]} 69. Rh5+ {[%clk 0:00:08]}  Kc6 {[%clk 0:00:09]} 70. Kb3 {[%clk 0:00:08]}  Rf1 {[%clk 0:00:08]} 71. Rh3 {[%clk 0:00:07]}  Rf4 {[%clk 0:00:08]} 72. Kc3 {[%clk 0:00:07]}  Kc5 {[%clk 0:00:09]} 73. Rh5+ {[%clk 0:00:07]}  Kd6 {[%clk 0:00:09]} 74. Rh6+ {[%clk 0:00:07]}  Ke5 {[%clk 0:00:09]} 75. Rh5+ {[%clk 0:00:06]}  Ke4 {[%clk 0:00:08]} 76. Rb5 {[%clk 0:00:05]}  Rf3+ {[%clk 0:00:08]} 77. Kc4 {[%clk 0:00:05]}  Rf1 {[%clk 0:00:08]} 78. Rb2 {[%clk 0:00:03]}  Rc1+ {[%clk 0:00:08]} 79. Kb3 {[%clk 0:00:03]}  Kd3 {[%clk 0:00:08]} 80. Rh2 {[%clk 0:00:03]}  Rb1+ {[%clk 0:00:08]} 81. Ka2 {[%clk 0:00:04]}  Rb8 {[%clk 0:00:08]} 82. Rh3+ {[%clk 0:00:04]}  Kc2 {[%clk 0:00:09]} 83. Rh2+ {[%clk 0:00:04]}  Kc3 {[%clk 0:00:09]} 84. Rh3+ {[%clk 0:00:05]}  Kc2 {[%clk 0:00:10]} 85. Rh2+ {[%clk 0:00:06]}  Kc3 {[%clk 0:00:10]} 86. Rh3+ {[%clk 0:00:06]}  Kc2 {[%clk 0:00:10]} 1/2-1/2


[Site "https://www.chess.com"]

[Event "Titled Tuesday Blitz August 31 2021"]
[White "Zhigalko, Sergei"]
[Black "Le, Tuan Minh"]
[WhiteFideId "13502956"]
[BlackFideId "12401153"]
[WhiteElo "2662"]
[BlackElo "2450"]
[Result "1/2-1/2"]
[Round "08"]
[TimeControl "180+1"]
[Date "2021.08.31"]
[WhiteClock "0:00:14"]
[BlackClock "0:00:25"]

1. e4 {[%clk 0:03:00]}  c5 {[%clk 0:03:00]} 2. Nf3 {[%clk 0:03:01]}  Nf6 {[%clk 0:03:00]} 3. e5 {[%clk 0:03:01]}  Nd5 {[%clk 0:03:01]} 4. c3 {[%clk 0:03:02]}  Nc6 {[%clk 0:02:58]} 5. Bc4 {[%clk 0:03:02]}  Nb6 {[%clk 0:02:58]} 6. Bb3 {[%clk 0:03:02]}  d5 {[%clk 0:02:50]} 7. exd6 {[%clk 0:03:02]}  exd6 {[%clk 0:02:46]} 8. O-O {[%clk 0:03:02]}  Be7 {[%clk 0:02:46]} 9. d4 {[%clk 0:03:02]}  cxd4 {[%clk 0:02:47]} 10. Nxd4 {[%clk 0:03:00]}  O-O {[%clk 0:02:44]} 11. Bf4 {[%clk 0:02:38]}  d5 {[%clk 0:02:44]} 12. Re1 {[%clk 0:02:24]}  Bd6 {[%clk 0:01:47]} 13. Bg3 {[%clk 0:01:59]}  Bxg3 {[%clk 0:01:41]} 14. hxg3 {[%clk 0:01:59]}  Qf6 {[%clk 0:01:42]} 15. Qf3 {[%clk 0:01:44]}  Qg6 {[%clk 0:01:37]} 16. Nd2 {[%clk 0:01:36]}  Nxd4 {[%clk 0:01:23]} 17. cxd4 {[%clk 0:01:37]}  Be6 {[%clk 0:01:24]} 18. Qf4 {[%clk 0:01:34]}  Rac8 {[%clk 0:01:20]} 19. Nf3 {[%clk 0:01:30]}  Qf6 {[%clk 0:01:08]} 20. Qxf6 {[%clk 0:01:28]}  gxf6 {[%clk 0:01:09]} 21. Rac1 {[%clk 0:01:28]}  Rxc1 {[%clk 0:01:02]} 22. Rxc1 {[%clk 0:01:28]}  Rc8 {[%clk 0:01:03]} 23. Rxc8+ {[%clk 0:01:26]}  Nxc8 {[%clk 0:01:04]} 24. Kf1 {[%clk 0:01:25]}  Kf8 {[%clk 0:01:00]} 25. Ne1 {[%clk 0:01:18]}  Nd6 {[%clk 0:00:58]} 26. Ke2 {[%clk 0:01:13]}  Ke7 {[%clk 0:00:53]} 27. Nc2 {[%clk 0:00:53]}  Nc8 {[%clk 0:00:52]} 28. Ne3 {[%clk 0:00:53]}  Kd6 {[%clk 0:00:53]} 29. Bc2 {[%clk 0:00:46]}  h6 {[%clk 0:00:50]} 30. Kf3 {[%clk 0:00:41]}  Ne7 {[%clk 0:00:50]} 31. Bd3 {[%clk 0:00:23]}  a5 {[%clk 0:00:46]} 32. Kf4 {[%clk 0:00:14]}  Nc6 {[%clk 0:00:45]} 33. Nc2 {[%clk 0:00:14]}  b6 {[%clk 0:00:35]} 34. Ke3 {[%clk 0:00:15]}  Ne7 {[%clk 0:00:35]} 35. Na3 {[%clk 0:00:14]}  Bf5 {[%clk 0:00:34]} 36. Nb5+ {[%clk 0:00:13]}  Kc6 {[%clk 0:00:33]} 37. Na7+ {[%clk 0:00:13]}  Kb7 {[%clk 0:00:31]} 38. Nb5 {[%clk 0:00:14]}  Kc6 {[%clk 0:00:32]} 39. Na7+ {[%clk 0:00:14]}  Kb7 {[%clk 0:00:24]} 40. Nb5 {[%clk 0:00:14]}  Kc6 {[%clk 0:00:25]} 1/2-1/2


[Site "https://www.chess.com"]